[Event "Titled Tuesday Blitz November 07 Late 2023"]
[White "Biernacki, Mark"]
[Black "Roberson, Peter T"]
[WhiteFideId "2082322"]
[BlackFideId "412384"]
[WhiteElo "2322"]
[BlackElo "2583"]
[Result "0-1"]
[Round "2"]
[TimeControl "180+1"]
[Date "2023.11.07"]
[WhiteClock "0:00:06"]
[BlackClock "0:00:33"]
[Board "90"]

1. e4 {[%clk 0:03:00]}  c5 {[%clk 0:02:59]} 2. Nc3 {[%clk 0:03:00]}  d6 {[%clk 0:03:00]} 3. d4 {[%clk 0:02:59]}  cxd4 {[%clk 0:03:00]} 4. Qxd4 {[%clk 0:03:00]}  Nc6 {[%clk 0:03:00]} 5. Qd2 {[%clk 0:03:01]}  b6 {[%clk 0:02:45]} 6. b3 {[%clk 0:03:01]}  Bb7 {[%clk 0:02:46]} 7. Bb2 {[%clk 0:03:00]}  Qd7 {[%clk 0:02:46]} 8. O-O-O {[%clk 0:03:00]}  O-O-O {[%clk 0:02:47]} 9. Kb1 {[%clk 0:02:51]}  Nf6 {[%clk 0:02:47]} 10. f3 {[%clk 0:02:49]}  Kb8 {[%clk 0:02:47]} 11. g4 {[%clk 0:02:48]}  h6 {[%clk 0:02:44]} 12. h4 {[%clk 0:02:45]}  e6 {[%clk 0:02:44]} 13. Nge2 {[%clk 0:02:41]}  d5 {[%clk 0:02:32]} 14. Bg2 {[%clk 0:02:22]}  d4 {[%clk 0:02:27]} 15. Nb5 {[%clk 0:01:46]}  e5 {[%clk 0:02:26]} 16. f4 {[%clk 0:01:46]}  Nxg4 {[%clk 0:02:22]} 17. fxe5 {[%clk 0:01:44]}  Nf2 {[%clk 0:02:11]} 18. e6 {[%clk 0:01:42]}  Qxe6 {[%clk 0:01:28]} 19. Qf4+ {[%clk 0:01:41]}  Qe5 {[%clk 0:01:29]} 20. Qxf2 {[%clk 0:01:40]}  Qxb5 {[%clk 0:01:29]} 21. Nxd4 {[%clk 0:01:33]}  Nxd4 {[%clk 0:01:28]} 22. Bxd4 {[%clk 0:01:30]}  Bc5 {[%clk 0:01:11]} 23. Bxc5 {[%clk 0:01:16]}  Qxc5 {[%clk 0:01:12]} 24. Qxf7 {[%clk 0:01:13]}  Qe5 {[%clk 0:01:13]} 25. Rhf1 {[%clk 0:01:02]}  a5 {[%clk 0:01:09]} 26. Qf5 {[%clk 0:00:52]}  Rxd1+ {[%clk 0:01:02]} 27. Rxd1 {[%clk 0:00:49]}  Qxf5 {[%clk 0:01:03]} 28. exf5 {[%clk 0:00:49]}  Bxg2 {[%clk 0:01:04]} 29. Rg1 {[%clk 0:00:48]}  Be4 {[%clk 0:01:02]} 30. Rxg7 {[%clk 0:00:48]}  Bxf5 {[%clk 0:01:00]} 31. Rf7 {[%clk 0:00:48]}  Bg4 {[%clk 0:00:55]} 32. Rf6 {[%clk 0:00:35]}  Kb7 {[%clk 0:00:55]} 33. c4 {[%clk 0:00:27]}  h5 {[%clk 0:00:54]} 34. Kb2 {[%clk 0:00:27]}  Re8 {[%clk 0:00:53]} 35. Ka3 {[%clk 0:00:27]}  Re2 {[%clk 0:00:51]} 36. Rf7+ {[%clk 0:00:23]}  Ka6 {[%clk 0:00:51]} 37. Rf6 {[%clk 0:00:23]}  Rc2 {[%clk 0:00:46]} 38. Rc6 {[%clk 0:00:21]}  Kb7 {[%clk 0:00:41]} 39. Rf6 {[%clk 0:00:21]}  Rh2 {[%clk 0:00:41]} 40. Rf7+ {[%clk 0:00:20]}  Kc6 {[%clk 0:00:39]} 41. Rf6+ {[%clk 0:00:20]}  Kc5 {[%clk 0:00:39]} 42. Rg6 {[%clk 0:00:14]}  Rxh4 {[%clk 0:00:38]} 43. Ka4 {[%clk 0:00:14]}  Bd7+ {[%clk 0:00:35]} 44. Ka3 {[%clk 0:00:14]}  Rh2 {[%clk 0:00:34]} 45. Rh6 {[%clk 0:00:13]}  h4 {[%clk 0:00:34]} 46. Rh7 {[%clk 0:00:09]}  Kc6 {[%clk 0:00:33]} 47. Rh6+ {[%clk 0:00:09]}  Kc7 {[%clk 0:00:34]} 48. Rh7 {[%clk 0:00:10]}  h3 {[%clk 0:00:34]} 49. Rh5 {[%clk 0:00:09]}  Rg2 {[%clk 0:00:34]} 50. c5 {[%clk 0:00:09]}  bxc5 {[%clk 0:00:34]} 51. Rxc5+ {[%clk 0:00:09]}  Kb6 {[%clk 0:00:34]} 52. Rh5 {[%clk 0:00:10]}  h2 {[%clk 0:00:34]} 53. Rh6+ {[%clk 0:00:10]}  Bc6 {[%clk 0:00:34]} 54. b4 {[%clk 0:00:08]}  Rg3+ {[%clk 0:00:32]} 55. Kb2 {[%clk 0:00:07]}  h1=Q {[%clk 0:00:33]} 56. Rxh1 {[%clk 0:00:08]}  Bxh1 {[%clk 0:00:33]} 57. bxa5+ {[%clk 0:00:06]}  Kxa5 {[%clk 0:00:33]} 0-1


[Site "https://www.chess.com"]

[Event "Titled Tuesday Blitz November 07 Late 2023"]
[White "Kopacz, Grzegorz"]
[Black "Xiong, Jeffery"]
[WhiteFideId "1109880"]
[BlackFideId "2047640"]
[WhiteElo "2224"]
[BlackElo "3014"]
[Result "0-1"]
[Round "2"]
[TimeControl "180+1"]
[Date "2023.11.07"]
[WhiteClock "0:00:00"]
[BlackClock "0:00:56"]
[Board "91"]

1. c4 {[%clk 0:03:00]}  g6 {[%clk 0:02:59]} 2. Nc3 {[%clk 0:03:00]}  Bg7 {[%clk 0:03:00]} 3. g3 {[%clk 0:03:00]}  Nc6 {[%clk 0:02:59]} 4. Bg2 {[%clk 0:02:59]}  d6 {[%clk 0:03:00]} 5. e3 {[%clk 0:02:55]}  Bd7 {[%clk 0:02:56]} 6. Nge2 {[%clk 0:02:54]}  Qc8 {[%clk 0:02:56]} 7. h4 {[%clk 0:02:52]}  e5 {[%clk 0:02:55]} 8. d4 {[%clk 0:02:48]}  Nf6 {[%clk 0:02:55]} 9. b3 {[%clk 0:02:43]}  O-O {[%clk 0:02:54]} 10. Bb2 {[%clk 0:02:42]}  Rb8 {[%clk 0:02:55]} 11. dxe5 {[%clk 0:02:30]}  dxe5 {[%clk 0:02:55]} 12. Nd5 {[%clk 0:02:26]}  Re8 {[%clk 0:02:55]} 13. Nxf6+ {[%clk 0:02:21]}  Bxf6 {[%clk 0:02:55]} 14. Nc3 {[%clk 0:02:19]}  Bg7 {[%clk 0:02:54]} 15. Nd5 {[%clk 0:02:16]}  b5 {[%clk 0:02:54]} 16. cxb5 {[%clk 0:02:13]}  Rxb5 {[%clk 0:02:55]} 17. Rc1 {[%clk 0:02:06]}  h5 {[%clk 0:02:09]} 18. O-O {[%clk 0:02:02]}  Re6 {[%clk 0:01:37]} 19. Qe2 {[%clk 0:01:51]}  Rb7 {[%clk 0:01:22]} 20. Rfd1 {[%clk 0:01:48]}  Be8 {[%clk 0:01:21]} 21. Bh3 {[%clk 0:01:33]}  f5 {[%clk 0:01:20]} 22. Bg2 {[%clk 0:01:33]}  Kh7 {[%clk 0:01:20]} 23. Qc4 {[%clk 0:01:21]}  a5 {[%clk 0:01:16]} 24. Nc3 {[%clk 0:01:11]}  Rb4 {[%clk 0:01:15]} 25. Qe2 {[%clk 0:01:09]}  Ne7 {[%clk 0:01:15]} 26. Nd5 {[%clk 0:01:02]}  Nxd5 {[%clk 0:01:13]} 27. Rxd5 {[%clk 0:01:00]}  a4 {[%clk 0:01:11]} 28. Rdc5 {[%clk 0:00:39]}  c6 {[%clk 0:01:10]} 29. Bc3 {[%clk 0:00:35]}  Rb5 {[%clk 0:01:07]} 30. Rxb5 {[%clk 0:00:24]}  cxb5 {[%clk 0:01:08]} 31. Bb2 {[%clk 0:00:24]}  Qa6 {[%clk 0:01:07]} 32. Rc7 {[%clk 0:00:21]}  axb3 {[%clk 0:01:07]} 33. axb3 {[%clk 0:00:20]}  Qd6 {[%clk 0:01:08]} 34. Qc2 {[%clk 0:00:19]}  Re7 {[%clk 0:01:08]} 35. Rxe7 {[%clk 0:00:18]}  Qxe7 {[%clk 0:01:09]} 36. Qc3 {[%clk 0:00:16]}  b4 {[%clk 0:01:09]} 37. Qc4 {[%clk 0:00:15]}  Bf7 {[%clk 0:01:09]} 38. Qc2 {[%clk 0:00:15]}  Qe6 {[%clk 0:01:09]} 39. Qc5 {[%clk 0:00:07]}  Qxb3 {[%clk 0:01:07]} 40. Bxe5 {[%clk 0:00:07]}  Bxe5 {[%clk 0:01:08]} 41. Qxe5 {[%clk 0:00:07]}  Qc3 {[%clk 0:01:09]} 42. Qe7 {[%clk 0:00:04]}  Kg7 {[%clk 0:01:09]} 43. Bd5 {[%clk 0:00:03]}  Qf6 {[%clk 0:01:09]} 44. Qc7 {[%clk 0:00:02]}  Kg8 {[%clk 0:00:54]} 45. Bxf7+ {[%clk 0:00:01]}  Qxf7 {[%clk 0:00:55]} 46. Qb8+ {[%clk 0:00:02]}  Qf8 {[%clk 0:00:56]} 47. Qxb4 {[%clk 0:00:00]}  Qxb4 {[%clk 0:00:56]} 0-1


[Site "https://www.chess.com"]

[Event "Titled Tuesday Blitz November 07 Late 2023"]
[White "Lalanne, Pablo"]
[Black "Yeletsky, Ivan"]
[WhiteFideId "112151"]
[BlackFideId "24180327"]
[WhiteElo "2399"]
[BlackElo "2932"]
[Result "0-1"]
[Round "2"]
[TimeControl "180+1"]
[Date "2023.11.07"]
[WhiteClock "0:00:58"]
[BlackClock "0:01:00"]
[Board "92"]

1. e4 {[%clk 0:03:00]}  Nf6 {[%clk 0:03:00]} 2. e5 {[%clk 0:03:00]}  Nd5 {[%clk 0:03:00]} 3. d4 {[%clk 0:02:59]}  d6 {[%clk 0:03:01]} 4. Nf3 {[%clk 0:02:59]}  dxe5 {[%clk 0:03:01]} 5. Nxe5 {[%clk 0:03:00]}  g6 {[%clk 0:03:02]} 6. Bc4 {[%clk 0:02:59]}  Bg7 {[%clk 0:03:02]} 7. Nxf7 {[%clk 0:02:40]}  Kxf7 {[%clk 0:02:48]} 8. Qf3+ {[%clk 0:02:40]}  Ke8 {[%clk 0:02:24]} 9. Qxd5 {[%clk 0:02:23]}  Qxd5 {[%clk 0:02:23]} 10. Bxd5 {[%clk 0:02:24]}  c6 {[%clk 0:02:19]} 11. Bb3 {[%clk 0:02:22]}  Bxd4 {[%clk 0:02:19]} 12. c3 {[%clk 0:02:23]}  Bf6 {[%clk 0:02:18]} 13. O-O {[%clk 0:02:21]}  Nd7 {[%clk 0:02:19]} 14. Re1 {[%clk 0:02:20]}  Nc5 {[%clk 0:02:13]} 15. Bc2 {[%clk 0:02:19]}  Bf5 {[%clk 0:02:13]} 16. Na3 {[%clk 0:02:06]}  Bxc2 {[%clk 0:02:07]} 17. Nxc2 {[%clk 0:02:07]}  Nd3 {[%clk 0:02:07]} 18. Rd1 {[%clk 0:02:06]}  Rd8 {[%clk 0:02:02]} 19. Rb1 {[%clk 0:01:58]}  Kf7 {[%clk 0:01:56]} 20. Be3 {[%clk 0:01:57]}  Nxb2 {[%clk 0:01:48]} 21. Rxd8 {[%clk 0:01:54]}  Rxd8 {[%clk 0:01:49]} 22. Bxa7 {[%clk 0:01:53]}  Bxc3 {[%clk 0:01:26]} 23. Ne3 {[%clk 0:01:47]}  b5 {[%clk 0:01:23]} 24. g3 {[%clk 0:01:41]}  Rd2 {[%clk 0:01:17]} 25. Rc1 {[%clk 0:01:38]}  b4 {[%clk 0:01:08]} 26. a3 {[%clk 0:01:27]}  Nd3 {[%clk 0:01:02]} 27. Rc2 {[%clk 0:01:05]}  Rxc2 {[%clk 0:01:00]} 28. Nxc2 {[%clk 0:00:58]}  b3 {[%clk 0:01:00]} 0-1


[Site "https://www.chess.com"]

[Event "Titled Tuesday Blitz November 07 Late 2023"]
[White "Grigoriants, Sergey"]
[Black "Oglaza, Oskar"]
[WhiteFideId "4130804"]
[BlackFideId "1194402"]
[WhiteElo "2915"]
[BlackElo "2388"]
[Result "1/2-1/2"]
[Round "2"]
[TimeControl "180+1"]
[Date "2023.11.07"]
[WhiteClock "0:00:43"]
[BlackClock "0:00:17"]
[Board "94"]

1. d4 {[%clk 0:02:55]}  Nf6 {[%clk 0:02:57]} 2. c4 {[%clk 0:02:55]}  g6 {[%clk 0:02:57]} 3. f3 {[%clk 0:02:55]}  d5 {[%clk 0:02:49]} 4. cxd5 {[%clk 0:02:54]}  Nxd5 {[%clk 0:02:50]} 5. e4 {[%clk 0:02:55]}  Nb6 {[%clk 0:02:50]} 6. Nc3 {[%clk 0:02:56]}  Bg7 {[%clk 0:02:51]} 7. Be3 {[%clk 0:02:56]}  O-O {[%clk 0:02:50]} 8. Qd2 {[%clk 0:02:56]}  c6 {[%clk 0:02:44]} 9. h4 {[%clk 0:02:54]}  e5 {[%clk 0:02:41]} 10. Nge2 {[%clk 0:02:48]}  Nc4 {[%clk 0:02:39]} 11. Qc1 {[%clk 0:02:33]}  Nxe3 {[%clk 0:02:38]} 12. Qxe3 {[%clk 0:02:34]}  exd4 {[%clk 0:02:38]} 13. Qf4 {[%clk 0:02:33]}  dxc3 {[%clk 0:02:38]} 14. Nxc3 {[%clk 0:02:34]}  Qa5 {[%clk 0:02:37]} 15. Rc1 {[%clk 0:02:33]}  h5 {[%clk 0:02:30]} 16. Bc4 {[%clk 0:02:32]}  Qc5 {[%clk 0:02:21]} 17. Bb3 {[%clk 0:02:28]}  Be5 {[%clk 0:02:06]} 18. Qg5 {[%clk 0:02:25]}  Bxc3+ {[%clk 0:02:05]} 19. Rxc3 {[%clk 0:02:23]}  Qxg5 {[%clk 0:02:05]} 20. hxg5 {[%clk 0:02:24]}  Rd8 {[%clk 0:02:03]} 21. f4 {[%clk 0:02:15]}  Be6 {[%clk 0:02:00]} 22. Bxe6 {[%clk 0:01:32]}  fxe6 {[%clk 0:02:01]} 23. f5 {[%clk 0:01:33]}  exf5 {[%clk 0:01:50]} 24. exf5 {[%clk 0:01:34]}  Nd7 {[%clk 0:01:44]} 25. fxg6 {[%clk 0:01:31]}  Re8+ {[%clk 0:01:36]} 26. Kd1 {[%clk 0:01:29]}  Ne5 {[%clk 0:01:30]} 27. Rxh5 {[%clk 0:01:29]}  Nxg6 {[%clk 0:01:27]} 28. Rh6 {[%clk 0:01:28]}  Kg7 {[%clk 0:01:27]} 29. Rch3 {[%clk 0:01:25]}  Rad8+ {[%clk 0:01:25]} 30. Kc2 {[%clk 0:01:24]}  Rh8 {[%clk 0:01:23]} 31. Rb3 {[%clk 0:01:22]}  b6 {[%clk 0:01:21]} 32. Ra3 {[%clk 0:01:22]}  Rd7 {[%clk 0:01:18]} 33. Rah3 {[%clk 0:01:19]}  Rxh6 {[%clk 0:01:13]} 34. gxh6+ {[%clk 0:01:19]}  Kh7 {[%clk 0:01:13]} 35. g4 {[%clk 0:01:20]}  Ne5 {[%clk 0:01:10]} 36. g5 {[%clk 0:01:20]}  Kg6 {[%clk 0:01:07]} 37. Re3 {[%clk 0:01:12]}  Kf5 {[%clk 0:00:48]} 38. b4 {[%clk 0:01:04]}  c5 {[%clk 0:00:29]} 39. bxc5 {[%clk 0:01:03]}  bxc5 {[%clk 0:00:29]} 40. Kc3 {[%clk 0:00:53]}  Ng4 {[%clk 0:00:29]} 41. Rh3 {[%clk 0:00:48]}  Kg6 {[%clk 0:00:28]} 42. h7 {[%clk 0:00:45]}  Rxh7 {[%clk 0:00:27]} 43. Rxh7 {[%clk 0:00:45]}  Kxh7 {[%clk 0:00:28]} 44. Kc4 {[%clk 0:00:45]}  Kg6 {[%clk 0:00:27]} 45. Kxc5 {[%clk 0:00:46]}  Ne5 {[%clk 0:00:27]} 46. Kb5 {[%clk 0:00:43]}  Kxg5 {[%clk 0:00:19]} 47. Ka6 {[%clk 0:00:43]}  Nc6 {[%clk 0:00:19]} 48. Kb7 {[%clk 0:00:43]}  Nb4 {[%clk 0:00:18]} 49. Kxa7 {[%clk 0:00:43]}  Nxa2 {[%clk 0:00:17]} 1/2-1/2


[Site "https://www.chess.com"]

[Event "Titled Tuesday Blitz November 07 Late 2023"]
[White "Skaric, Djuro"]
[Black "Glavina, Pablo"]
[WhiteFideId "934569"]
[BlackFideId "100234"]
[WhiteElo "2370"]
[BlackElo "2764"]
[Result "0-1"]
[Round "2"]
[TimeControl "180+1"]
[Date "2023.11.07"]
[WhiteClock "0:01:33"]
[BlackClock "0:01:22"]
[Board "96"]

1. g3 {[%clk 0:03:00]}  b6 {[%clk 0:03:00]} 2. Bg2 {[%clk 0:03:01]}  Nc6 {[%clk 0:03:01]} 3. d3 {[%clk 0:03:01]}  Bb7 {[%clk 0:03:02]} 4. Nc3 {[%clk 0:03:01]}  Nf6 {[%clk 0:03:01]} 5. e4 {[%clk 0:03:02]}  e6 {[%clk 0:03:02]} 6. f4 {[%clk 0:03:02]}  d5 {[%clk 0:03:02]} 7. e5 {[%clk 0:02:59]}  Nd7 {[%clk 0:03:01]} 8. Nf3 {[%clk 0:02:59]}  Be7 {[%clk 0:03:00]} 9. h4 {[%clk 0:02:59]}  O-O {[%clk 0:02:58]} 10. O-O {[%clk 0:02:58]}  a5 {[%clk 0:02:54]} 11. Ne2 {[%clk 0:02:58]}  a4 {[%clk 0:02:54]} 12. a3 {[%clk 0:02:58]}  b5 {[%clk 0:02:54]} 13. c3 {[%clk 0:02:58]}  Na5 {[%clk 0:02:54]} 14. Kh2 {[%clk 0:02:56]}  c5 {[%clk 0:02:53]} 15. Kh3 {[%clk 0:02:54]}  Nb3 {[%clk 0:02:53]} 16. Rb1 {[%clk 0:02:52]}  b4 {[%clk 0:02:53]} 17. Be3 {[%clk 0:02:44]}  Ba6 {[%clk 0:02:50]} 18. g4 {[%clk 0:02:41]}  bxa3 {[%clk 0:02:47]} 19. bxa3 {[%clk 0:02:41]}  Nb6 {[%clk 0:02:41]} 20. g5 {[%clk 0:02:39]}  d4 {[%clk 0:02:40]} 21. cxd4 {[%clk 0:02:37]}  Nd5 {[%clk 0:02:40]} 22. Bc1 {[%clk 0:02:34]}  cxd4 {[%clk 0:02:40]} 23. Ng3 {[%clk 0:02:26]}  Nc3 {[%clk 0:02:34]} 24. Qc2 {[%clk 0:02:19]}  Nxb1 {[%clk 0:02:33]} 25. Qxb1 {[%clk 0:02:19]}  Rc8 {[%clk 0:02:33]} 26. Bb2 {[%clk 0:02:16]}  Bb7 {[%clk 0:02:20]} 27. Rf2 {[%clk 0:02:08]}  Qa5 {[%clk 0:02:15]} 28. Ne4 {[%clk 0:02:01]}  Bxe4 {[%clk 0:02:13]} 29. dxe4 {[%clk 0:02:01]}  Rfd8 {[%clk 0:02:11]} 30. f5 {[%clk 0:02:01]}  d3 {[%clk 0:02:09]} 31. f6 {[%clk 0:02:01]}  Bc5 {[%clk 0:02:09]} 32. Rf1 {[%clk 0:02:00]}  Nd2 {[%clk 0:01:59]} 33. Nxd2 {[%clk 0:02:00]}  Qxd2 {[%clk 0:01:59]} 34. fxg7 {[%clk 0:01:59]}  Qe3+ {[%clk 0:01:56]} 35. Rf3 {[%clk 0:01:50]}  Qe2 {[%clk 0:01:51]} 36. Bc3 {[%clk 0:01:37]}  Rb8 {[%clk 0:01:26]} 37. Bb4 {[%clk 0:01:38]}  Bxb4 {[%clk 0:01:24]} 38. axb4 {[%clk 0:01:37]}  d2 {[%clk 0:01:24]} 39. Qc2 {[%clk 0:01:37]}  d1=Q {[%clk 0:01:24]} 40. Qc7 {[%clk 0:01:33]}  Qxf3+ {[%clk 0:01:22]} 0-1


[Site "https://www.chess.com"]

[Event "Titled Tuesday Blitz November 07 Late 2023"]
[White "Lacey, Patrick"]
[Black "Priasmoro, Novendra"]
[WhiteFideId "2032007"]
[BlackFideId "7105029"]
[WhiteElo "2361"]
[BlackElo "2694"]
[Result "0-1"]
[Round "2"]
[TimeControl "180+1"]
[Date "2023.11.07"]
[WhiteClock "0:00:05"]
[BlackClock "0:00:59"]
[Board "99"]

1. Nf3 {[%clk 0:03:00]}  Nf6 {[%clk 0:02:40]} 2. c4 {[%clk 0:02:59]}  g6 {[%clk 0:02:40]} 3. g3 {[%clk 0:02:58]}  Bg7 {[%clk 0:02:41]} 4. Bg2 {[%clk 0:02:57]}  O-O {[%clk 0:02:42]} 5. O-O {[%clk 0:02:57]}  d6 {[%clk 0:02:42]} 6. Nc3 {[%clk 0:02:54]}  e5 {[%clk 0:02:43]} 7. d3 {[%clk 0:02:53]}  Nh5 {[%clk 0:02:43]} 8. Rb1 {[%clk 0:02:50]}  f5 {[%clk 0:02:44]} 9. Bg5 {[%clk 0:02:41]}  Qe8 {[%clk 0:02:43]} 10. Nd5 {[%clk 0:02:37]}  Rf7 {[%clk 0:01:55]} 11. Qc1 {[%clk 0:02:29]}  c6 {[%clk 0:01:55]} 12. Nc3 {[%clk 0:02:27]}  f4 {[%clk 0:01:55]} 13. Ne4 {[%clk 0:02:18]}  Qf8 {[%clk 0:01:54]} 14. c5 {[%clk 0:02:12]}  d5 {[%clk 0:01:53]} 15. Nd6 {[%clk 0:02:09]}  Rc7 {[%clk 0:01:48]} 16. d4 {[%clk 0:02:04]}  h6 {[%clk 0:01:36]} 17. Bh4 {[%clk 0:01:59]}  e4 {[%clk 0:01:34]} 18. Ne5 {[%clk 0:01:40]}  g5 {[%clk 0:01:32]} 19. gxf4 {[%clk 0:01:26]}  gxh4 {[%clk 0:01:29]} 20. e3 {[%clk 0:01:23]}  h3 {[%clk 0:01:28]} 21. Bxe4 {[%clk 0:01:07]}  Bxe5 {[%clk 0:01:24]} 22. dxe5 {[%clk 0:00:50]}  Rg7+ {[%clk 0:01:22]} 23. Kh1 {[%clk 0:00:49]}  dxe4 {[%clk 0:01:23]} 24. Qc4+ {[%clk 0:00:42]}  Kh8 {[%clk 0:01:23]} 25. Qxe4 {[%clk 0:00:42]}  Be6 {[%clk 0:01:22]} 26. Qf3 {[%clk 0:00:29]}  Bg4 {[%clk 0:01:14]} 27. Qe4 {[%clk 0:00:27]}  Be6 {[%clk 0:01:00]} 28. Qf3 {[%clk 0:00:25]}  Nxf4 {[%clk 0:01:01]} 29. Qxf4 {[%clk 0:00:20]}  Qxf4 {[%clk 0:00:58]} 30. exf4 {[%clk 0:00:21]}  Bd5+ {[%clk 0:00:59]} 31. f3 {[%clk 0:00:21]}  Nd7 {[%clk 0:01:00]} 32. b4 {[%clk 0:00:05]}  Rf8 {[%clk 0:00:59]} 0-1


[Site "https://www.chess.com"]

[Event "Titled Tuesday Blitz November 07 Late 2023"]
[White "Bashylina, Luisa"]
[Black "Akobian, Varuzhan"]
[WhiteFideId "12983292"]
[BlackFideId "13300580"]
[WhiteElo "2359"]
[BlackElo "2691"]
[Result "1-0"]
[Round "2"]
[TimeControl "180+1"]
[Date "2023.11.07"]
[WhiteClock "0:02:19"]
[BlackClock "0:00:00"]
[Board "100"]

1. d4 {[%clk 0:02:58]}  e6 {[%clk 0:00:17]} 2. c4 {[%clk 0:02:56]}  f5 {[%clk 0:00:16]} 3. g3 {[%clk 0:02:56]}  Nf6 {[%clk 0:00:17]} 4. Bg2 {[%clk 0:02:56]}  d5 {[%clk 0:00:17]} 5. e3 {[%clk 0:02:48]}  c6 {[%clk 0:00:16]} 6. Ne2 {[%clk 0:02:48]}  Bd6 {[%clk 0:00:16]} 7. O-O {[%clk 0:02:49]}  O-O {[%clk 0:00:15]} 8. c5 {[%clk 0:02:49]}  Bc7 {[%clk 0:00:15]} 9. b4 {[%clk 0:02:50]}  a6 {[%clk 0:00:12]} 10. Bb2 {[%clk 0:02:50]}  Qe7 {[%clk 0:00:11]} 11. a4 {[%clk 0:02:50]}  Bd7 {[%clk 0:00:09]} 12. Nd2 {[%clk 0:02:49]}  Be8 {[%clk 0:00:08]} 13. Nf3 {[%clk 0:02:44]}  Nbd7 {[%clk 0:00:08]} 14. b5 {[%clk 0:02:43]}  axb5 {[%clk 0:00:07]} 15. axb5 {[%clk 0:02:43]}  Bh5 {[%clk 0:00:06]} 16. b6 {[%clk 0:02:42]}  Rxa1 {[%clk 0:00:05]} 17. Bxa1 {[%clk 0:02:40]}  Bb8 {[%clk 0:00:05]} 18. Nf4 {[%clk 0:02:35]}  Bxf3 {[%clk 0:00:05]} 19. Bxf3 {[%clk 0:02:32]}  Ne4 {[%clk 0:00:04]} 20. Qc2 {[%clk 0:02:24]}  Ndf6 {[%clk 0:00:02]} 21. Bb2 {[%clk 0:02:23]}  e5 {[%clk 0:00:01]} 22. dxe5 {[%clk 0:02:21]}  Bxe5 {[%clk 0:00:00]} 23. Bd4 {[%clk 0:02:19]} 1-0


[Site "https://www.chess.com"]

[Event "Titled Tuesday Blitz November 07 Late 2023"]
[White "Mladenovic, Stefan"]
[Black "Becerra, Juan David"]
[WhiteFideId "942227"]
[BlackFideId "4404998"]
[WhiteElo "2686"]
[BlackElo "2356"]
[Result "1-0"]
[Round "2"]
[TimeControl "180+1"]
[Date "2023.11.07"]
[WhiteClock "0:02:56"]
[BlackClock "0:00:55"]
[Board "101"]

1. d4 {[%clk 0:03:00]}  e6 {[%clk 0:03:00]} 2. Nf3 {[%clk 0:03:00]}  d5 {[%clk 0:03:00]} 3. Bf4 {[%clk 0:02:59]}  Nf6 {[%clk 0:03:00]} 4. e3 {[%clk 0:02:59]}  Nbd7 {[%clk 0:03:00]} 5. Bd3 {[%clk 0:02:59]}  b6 {[%clk 0:02:54]} 6. Nbd2 {[%clk 0:02:58]}  c5 {[%clk 0:02:52]} 7. c3 {[%clk 0:02:58]}  cxd4 {[%clk 0:02:48]} 8. exd4 {[%clk 0:02:58]}  Be7 {[%clk 0:02:45]} 9. Qe2 {[%clk 0:02:57]}  O-O {[%clk 0:02:43]} 10. O-O {[%clk 0:02:57]}  a5 {[%clk 0:02:41]} 11. Ne5 {[%clk 0:02:57]}  Re8 {[%clk 0:00:55]} 12. Nc6 {[%clk 0:02:56]} 1-0


[Site "https://www.chess.com"]

[Event "Titled Tuesday Blitz November 07 Late 2023"]
[White "Flameboard08"]
[Black "Kujawski, Adam"]
[BlackFideId "1100920"]
[WhiteElo "2615"]
[BlackElo "2353"]
[Result "0-1"]
[Round "2"]
[TimeControl "180+1"]
[Date "2023.11.07"]
[WhiteClock "0:00:00"]
[BlackClock "0:00:15"]
[Board "103"]

1. f4 {[%clk 0:02:57]}  d5 {[%clk 0:02:52]} 2. Nf3 {[%clk 0:02:57]}  g6 {[%clk 0:02:53]} 3. g3 {[%clk 0:02:55]}  Bg7 {[%clk 0:02:53]} 4. Bg2 {[%clk 0:02:55]}  Nf6 {[%clk 0:02:53]} 5. O-O {[%clk 0:02:54]}  b6 {[%clk 0:02:53]} 6. d3 {[%clk 0:02:55]}  Bb7 {[%clk 0:02:53]} 7. Nbd2 {[%clk 0:02:55]}  O-O {[%clk 0:02:52]} 8. c3 {[%clk 0:02:56]}  c5 {[%clk 0:02:52]} 9. Re1 {[%clk 0:02:55]}  d4 {[%clk 0:02:43]} 10. e4 {[%clk 0:02:55]}  dxe3 {[%clk 0:02:18]} 11. Nc4 {[%clk 0:02:54]}  Ng4 {[%clk 0:02:10]} 12. Nxe3 {[%clk 0:02:44]}  Nxe3 {[%clk 0:02:10]} 13. Bxe3 {[%clk 0:02:45]}  Nd7 {[%clk 0:02:08]} 14. h3 {[%clk 0:02:44]}  Nf6 {[%clk 0:02:07]} 15. Qe2 {[%clk 0:02:44]}  Qc7 {[%clk 0:02:05]} 16. Bf2 {[%clk 0:02:41]}  Rfe8 {[%clk 0:02:04]} 17. Rad1 {[%clk 0:02:37]}  Rad8 {[%clk 0:02:04]} 18. d4 {[%clk 0:02:35]}  c4 {[%clk 0:01:52]} 19. Ne5 {[%clk 0:02:26]}  Bxg2 {[%clk 0:01:51]} 20. Kxg2 {[%clk 0:02:27]}  b5 {[%clk 0:01:50]} 21. g4 {[%clk 0:02:18]}  Nd5 {[%clk 0:01:49]} 22. Bg3 {[%clk 0:02:04]}  f6 {[%clk 0:01:32]} 23. Nf3 {[%clk 0:02:03]}  Nxf4+ {[%clk 0:01:29]} 24. Bxf4 {[%clk 0:02:04]}  Qxf4 {[%clk 0:01:29]} 25. Qe6+ {[%clk 0:02:03]}  Kh8 {[%clk 0:01:29]} 26. Re4 {[%clk 0:01:53]}  Qd6 {[%clk 0:01:23]} 27. Rde1 {[%clk 0:01:50]}  Qxe6 {[%clk 0:01:18]} 28. Rxe6 {[%clk 0:01:51]}  Bf8 {[%clk 0:01:12]} 29. Ra6 {[%clk 0:01:47]}  Ra8 {[%clk 0:01:08]} 30. g5 {[%clk 0:01:35]}  Kg7 {[%clk 0:01:01]} 31. a4 {[%clk 0:01:23]}  bxa4 {[%clk 0:00:56]} 32. gxf6+ {[%clk 0:01:10]}  exf6 {[%clk 0:00:55]} 33. Rxe8 {[%clk 0:01:11]}  Rxe8 {[%clk 0:00:54]} 34. Rxa7+ {[%clk 0:01:11]}  Re7 {[%clk 0:00:49]} 35. Rxa4 {[%clk 0:01:01]}  Re2+ {[%clk 0:00:49]} 36. Kf1 {[%clk 0:01:01]}  Rxb2 {[%clk 0:00:49]} 37. Rxc4 {[%clk 0:01:01]}  h5 {[%clk 0:00:46]} 38. Rc7+ {[%clk 0:00:55]}  Kh6 {[%clk 0:00:44]} 39. Rf7 {[%clk 0:00:53]}  Bg7 {[%clk 0:00:41]} 40. c4 {[%clk 0:00:50]}  g5 {[%clk 0:00:39]} 41. c5 {[%clk 0:00:49]}  g4 {[%clk 0:00:34]} 42. hxg4 {[%clk 0:00:46]}  hxg4 {[%clk 0:00:34]} 43. Nh4 {[%clk 0:00:24]}  Kg5 {[%clk 0:00:34]} 44. Ng2 {[%clk 0:00:24]}  Kg6 {[%clk 0:00:33]} 45. Re7 {[%clk 0:00:19]}  Rc2 {[%clk 0:00:24]} 46. Nf4+ {[%clk 0:00:17]}  Kf5 {[%clk 0:00:24]} 47. Ng2 {[%clk 0:00:13]}  Bh6 {[%clk 0:00:23]} 48. Rh7 {[%clk 0:00:10]}  Bg5 {[%clk 0:00:22]} 49. Rc7 {[%clk 0:00:06]}  g3 {[%clk 0:00:21]} 50. d5 {[%clk 0:00:05]}  Rf2+ {[%clk 0:00:18]} 51. Kg1 {[%clk 0:00:04]}  Rd2 {[%clk 0:00:18]} 52. Kf1 {[%clk 0:00:02]}  Rxd5 {[%clk 0:00:18]} 53. c6 {[%clk 0:00:02]}  Rc5 {[%clk 0:00:18]} 54. Rc8 {[%clk 0:00:02]}  Bf4 {[%clk 0:00:17]} 55. Nh4+ {[%clk 0:00:01]}  Kg4 {[%clk 0:00:16]} 56. Ng2 {[%clk 0:00:00]}  Bg5 {[%clk 0:00:15]} 0-1


[Site "https://www.chess.com"]